{"text_format":"1","workbook":"xlsx","n_sheets":4,"sheets":["Antrag","Kosten- und Finanzier.übersicht","Anlage Erläuterungen","Zahlenmäßiger Nachweis"],"not_rendered":{"charts":0,"images":17,"macros":1,"external_links":0,"defined_names":19,"comments":0,"pivot_tables":0},"unopened":[],"bounds":{"document_bytes":16777216,"sheet_cells":100000,"rows_first":2000,"rows_last":500,"rows_between":2000,"halvings":0,"cell_chars":16384,"cell_head_chars":4096},"cells_cut":0,"cells_raw":0,"read":"whole","date_system":"1900"}

{"sheet":"Antrag","index":0,"n_rows":94,"n_cols":6,"rows_kept":94,"cut":false,"hidden":false,"merged":[[9,4,9,5],[10,4,10,5],[37,1,37,5],[29,1,29,5],[30,1,30,5],[33,1,33,5],[34,1,34,5],[35,1,35,5],[32,1,32,5],[27,5,28,5],[22,1,22,5],[23,1,23,5],[47,1,47,5],[42,1,42,4],[44,1,44,4],[72,1,72,5],[40,1,40,5],[38,1,38,5],[76,1,76,5],[85,0,85,5],[89,4,89,5],[68,1,68,5],[0,0,0,5],[12,2,12,5],[4,1,4,5],[14,2,14,5],[77,1,77,5],[13,1,15,1],[48,1,48,5],[31,1,31,5],[36,1,36,5],[70,1,70,5],[16,2,16,5],[41,1,41,4],[92,4,92,5],[50,5,53,5],[93,4,93,5],[90,4,90,5],[90,0,90,2],[84,0,84,5],[87,0,87,5],[67,1,67,5],[80,1,80,5],[79,1,79,5],[89,0,89,2],[78,1,78,5],[66,1,66,5],[73,1,73,4],[74,1,74,5],[75,1,75,5]]}
["Antrag zur Förderung eines Vorhabens über den Altstadtfonds Lüdenscheid"]
[null,null,null,null,"Datum der Antragstellung:  "]
["1.","Titel des Vorhabens"]
[null,"Kurzer Titel, der den Inhalt des Projekts beschreibt"]
[]
[]
[]
["2.","Laufzeit","von",null,"bis"]
[]
["3.","Antragsteller /-in",null,"IBAN:"]
[null,"Anrede",null,"Bank:"]
[]
[null,"Name/ Ansprechpartner:"]
[null,"Einrichtung/ Verein/ Gruppe:"]
[]
[]
[null,"Anschrift:"]
[]
[]
[null,"Telefon / Fax",null,"Mobil",null,"eMail"]
[]
["4.","Beschreibung des Vorhabens"]
[null,"Welche Ziele wollen Sie erreichen? Mit welchen Schritten/ Angeboten/ Aktionen wollen Sie dies tun? "]
[]
["Antrag an den Verfügungsfonds Altstadt",null,null,null,null,{"$f":"Datum","v":"00:00:00"}]
[{"$f":"Titel","v":0}]
[]
["5.","Bezug zu den Zielen des Altstadtfonds",null,null,null,"Bitte mindestens ein Ziel benennen, besser mehrere. \nZutreffende Kästchen bitte anklicken."]
[null,"Das Vorhaben trägt zur Erreichung folgender Ziele bei:"]
[null,"Stärkung des Images der Altstadt"]
[null,"Erhöhung der Identifikation der Bewohnerinnen / Bewohner mit der Altstadt"]
[null,"Förderung des bürgerschaftlichen Engagements in Altstadt"]
[null,"Stärkung der nachbarschaftlichen Kontakte und des Zusammenlebens der \nverschiedenen Generationen und Kulturen in der Altstadt"]
[null,"Stärkung der Vernetzung von Einrichtungen und Organisationen in der Altstadt"]
[null,"Belebung der Stadtteilkultur und Stärkung der Freizeit- und Aufenthaltsfunktion"]
[null,"Stärkung der Wohnfunktion des Stadtteils"]
[null,"Förderung der Teilhabe der Bevölkerung am wirtschaftlichen, sozialen und \nkulturellen Leben in der Altstadt"]
[null,"Weiterbildung und Informationsverbreitung, soweit dies für die Erreichung der \nZiele des IHK Altstadt erforderlich ist"]
[null,"Gestaltung des öffentlichen Raums"]
[]
["6.","Realisierbarkeit (bitte anklicken)"]
[null,"Sind die erforderlichen Ressourcen (z.B. Räume/ Grundstücke) vorhanden und verfügbar?"]
[null,"Ist bereits eine hauptverantwortliche Person benannt?"]
[null,null,null,null,"Name:",{"$f":"Name__Ansprechpartner","v":0}]
[null,"Ist das Projekt im geplanten Zeitraum umsetzbar?"]
[]
["7.","Kosten und Finanzierung"]
[null,"Die Summen sind hier nachrichtlich wiedergegeben."]
[null,"Die verschiedenen Kostenpositionen sind der Kosten- und Finanzierungsübersicht  zu entnehmen, der in dieser Excel-Arbeitsmappe als 2. Arbeitsblatt enthalten ist (siehe \"Reiter\" am unteren Rand). \nDie Kosten- und Finanzierungsübersicht  ist Bestandtteil des Antrags und muss ausgefüllt sein."]
[]
[null,"Summe Ausgaben:",null,{"$f":"Sachkosten","v":0},null,"Diese Felder dürfen nicht überschrieben werden, sie werden automatisch aus dem Finanzplan übertragen!"]
[]
[null,"Erwartete Einnahmen:",null,{"$f":"Einnahmen","v":0}]
[null,"Beantragte Fördersumme:",null,{"$f":"Fördermittel","v":0}]
["Antrag an den Verfügungsfonds Altstadt",null,null,null,null,{"$f":"Datum","v":"00:00:00"}]
[{"$f":"Titel","v":0}]
[]
["8.","Hinweis: AUSSCHLUSSKRITERIEN"]
[null,"Folgende Maßnahmen können grundsätzlich NICHT gefördert werden:"]
[null," - Maßnahmen, die bereits Mittel aus Landes- oder EU-Förderungen enthalten (Verbot der Doppelförderung)"]
[null," - Maßnahmen, mit deren Durchführung bereits begonnen wurde"]
[null," - Laufende Betriebs- und Sachkosten des Antragstellers"]
[null," - Reguläre Personalkosten des Antragsstellers"]
[null," - Jegliche Kosten, die nicht im direkten Zusammenhang mit dem Projekt stehen"]
[null," - Catering"]
[]
["9.","Vorsteuerabzug"]
[null,"             Ich bin/ wir sind als Antragsteller/in vorsteuerabzugsberechtigt."]
[null,"             Die Optionsmöglichkeit gem. § 9 UStG entfällt. "]
[null,"             Ich/wir nehme(n) die Optionsmöglichkeit nach § 9 UStG wahr."]
[null,"             Die Voraussetzungen zur Inanspruchnahme der Option sind gem. § 9 UstG nachzuweisen."]
[]
["10.","Eigenerklärungen"]
[null,"Ich/ wir erlären, dass"]
[null," - die in diesem Antrag einschließlich seiner Anlagen gemachten Angaben vollständig und richtig sind;"]
[null," - mit der Maßnahme noch nicht begonnen wurde und vor Erteilung der Bewilligung nicht begonnen wird;"]
[null," - ich/ wir die AUSSCHLUSSKRITERIEN (Nr. 8 dieses Antrags) zur Kenntnis genommen haben \n   und dass diese auf das hier beantragte Projekt NICHT zutreffen;"]
[null," - mir/ uns die Richtlinien der Stadt Lüdenscheid zur Vergabe der Mittel aus dem Altstadtfonds\n   bekannt sind, und dass diese als verbindlich anerkannt werden;"]
[null," - mir/ uns bekannt ist, dass ich/ wir nach Beendigung des Projekts einen Nachweis über die \n   Verwendung der Mittel einreichen müssen, der von der Stadt Lüdenscheid geprüft wird;"]
[null," - ich für die beantragende Einrichtung/ Verein/ Initiative zeichnungsberechtigt bin;"]
[null," - das im Rahmen des Verwendungsnachweises bereitgestellte Bildmaterial keine Rechte Dritter verletzt,  \n   und der Stadt Lüdenscheid uneingeschränkt und ohne zeitliche Befristung zur Verfügung gestellt wird."]
[]
["Bitte beachten:"]
[]
["Die Anträge müssen spätestens 30 Arbeitstage vor der nächsten Sitzung des Altstadtbeirats beim Altstadtbüro in der Luisenstr. 19, 58511 Lüdenscheid eingegangen sein. "]
["Die Termine erfahren Sie auf der Webseite des Altstadtbüros oder nach Rücksprache. Die Anträge werden in der Reihenfolge ihres Eingangs bearbeitet. Es wird empfohlen, frühzeitig beim Altstadtbüro eine Antragsberatung in Anspruch zu nehmen. Telefon: 02351/ 5 69 37 23, team@altstadt-buero.de, www.mensch-altstadt.de "]
["Die Kosten- und Finanzierungsübersicht ist Bestandteil dieses Förderantrags."]
["Ein Rechtsanspruch auf eine Bewilligung besteht nicht.\nÜber das Ergebnis der Entscheidung werden die Antragsteller unterrichtet."]
[]
[]
["Ort, Datum",null,null,null,"Unterschrift"]
[]
[null,null,null,null,{"$f":"Name__Ansprechpartner","v":0}]
["hier kannst Du Ideen umsetzen",null,null,null,"Name in Blockbuchstaben"]

{"sheet":"Kosten- und Finanzier.übersicht","index":1,"n_rows":108,"n_cols":6,"rows_kept":108,"cut":false,"hidden":false,"merged":[[4,1,4,4],[5,1,5,4],[68,2,68,3],[69,2,69,3],[70,2,70,3],[90,0,90,5],[89,0,89,5],[13,2,13,5],[72,2,72,3],[73,2,73,3],[74,2,74,3],[75,2,75,3],[76,2,76,3],[77,2,77,3],[78,2,78,3],[79,2,79,3],[80,2,80,3],[81,2,81,3],[82,2,82,3],[71,2,71,3]]}
["Anlage zum Antrag an den Altstadtfonds Lüdenscheid",null,null,null,null,{"$f":"Datum","v":"00:00:00"}]
[{"$f":"Titel","v":0}]
[]
[null,"Antragsteller:"]
[null,{"$f":"Institution","v":0}]
[null,{"$f":"Name__Ansprechpartner","v":0},null,null,null,"hier kannst Du Ideen umsetzen"]
[]
["Sie können Eingaben nur in den hellgelben Feldern vornehmen. Die jeweiligen Summen errechnen sich automatisch."]
["Zeilen einblenden: Zwei Zeilen markieren - rechte Maustaste - Einblenden -> Ausgeblendete Zeilen zwischen den markierten Zeilen werden angezeigt."]
[]
["Kosten- und Finanzierungsübersicht"]
["Kalkulation der Ausgaben, der Einnahmen und des Fördermittelbedarfs"]
[]
[null,"Kostenart","geplante/ geschätzte Kosten"]
[null,null,"(z.B. Lernmittel, Öffentlichkeitsarbeit, Büromaterialien)"]
["Nr.","Kosten","Einz.-Preis","Anzahl","Summe","Bemerkungen"]
["1.",null,null,null,{"$f":"C17*D17","v":0}]
["2.",null,null,null,{"$f":"C18*D18","v":0}]
["3.",null,null,null,{"$f":"C19*D19","v":0}]
["4.",null,null,null,{"$f":"C20*D20","v":0}]
["5.",null,null,null,{"$f":"C21*D21","v":0}]
["6.",null,null,null,0]
["7.",null,null,null,0]
["8.",null,null,null,0]
["9.",null,null,null,0]
["10.",null,null,null,0]
["11.",null,null,null,0]
["12.",null,null,null,0]
["13.",null,null,null,0]
["14.",null,null,null,0]
["15.",null,null,null,0]
["16.",null,null,null,0]
["17.",null,null,null,0]
["18.",null,null,null,0]
["19.",null,null,null,0]
["20.",null,null,null,0]
["21.",null,null,null,0]
["22.",null,null,null,0]
["23.",null,null,null,0]
["24.",null,null,null,0]
["25.",null,null,null,0]
[null,null,null,null,0]
["6.",null,null,null,{"$f":"C43*D43","v":0}]
["7.",null,null,null,0]
["8.",null,null,null,0]
["9.",null,null,null,0]
["10.",null,null,null,0]
["11.",null,null,null,0]
["12.",null,null,null,0]
["13.",null,null,null,0]
["14.",null,null,null,0]
["15.",null,null,null,0]
["16.",null,null,null,0]
["17.",null,null,null,0]
["18.",null,null,null,0]
["19.",null,null,null,0]
["20.",null,null,null,0]
["21.",null,null,null,0]
["22.",null,null,null,0]
["23.",null,null,null,0]
["24.",null,null,null,0]
["25.",null,null,null,0]
[null,"bis zu 10 weitere Zeilen können eingeblendet werden"]
["Summe Kosten",null,null,null,{"$f":"SUM(E17:E63)","v":0}]
[]
[]
[null,null,"(ergänzen Sie die Liste entsprechend Ihrer Finanzkalkulation)"]
["Nr.","Einnahmen/ Eigenmittel/ Drittmittel",null,null,"Summe","Bemerkungen"]
["1.",null,null,null,{"$f":"C69","v":0}]
["2.",null,null,null,{"$f":"C70","v":0}]
["3.",null,null,null,0]
["4.",null,null,null,0]
["5.",null,null,null,0]
["6.",null,null,null,0]
["7.",null,null,null,0]
["8.",null,null,null,0]
["9.",null,null,null,0]
["10.",null,null,null,0]
["11.",null,null,null,0]
["12.",null,null,null,0]
["13.",null,null,null,0]
["14.",null,null,null,0]
["15.",null,null,null,0]
[null,"bis zu 10 weitere Zeilen können eingeblendet werden"]
["Summen Einnahmen",null,null,null,{"$f":"SUM(E69:E84)","v":0}]
[]
["Fördermittel Altstadtfonds",null,null,null,{"$f":"E64-E85","v":0}]
[]
[]
["Bitte beachten Sie, dass Einnahmen, Eigenmittel oder die Verwendung von Drittmitteln die Höhe des Zuschusses verringern!"]
["Ergibt sich ein größerer Projektzusammenhang (Kofinanzierung) bitten wir um Rücksprache mit dem \nAltstadtbüro Lüdenscheid. "]
[]
[]
[]
[]
[]
[]
[]
[]
[]
[]
[]
[]
[]
[]
[null,"Bitte NICHT löschen!"]
[null,"Frau","ja"]
[null,"Herr","nein"]

{"sheet":"Anlage Erläuterungen","index":2,"n_rows":31,"n_cols":6,"rows_kept":31,"cut":false,"hidden":false,"merged":[[9,0,9,5],[26,1,26,5],[27,1,27,5],[30,1,30,5],[31,1,31,5],[13,1,13,5],[16,1,16,5],[17,1,17,5],[21,1,21,5],[22,1,22,5],[23,1,23,5],[1,0,1,5],[6,1,6,4],[7,1,7,4],[2,0,2,5],[3,0,3,5]]}
["Anlage zum Antrag an den Altstadtfonds Lüdenscheid",null,null,null,null,{"$f":"Datum","v":"00:00:00"}]
["Ergänzende Erläuterungen zum Antrag "]
[{"$f":"Titel","v":0}]
["Ausführungen zu verschiedenen Aspekten rund um das Vorhaben, die dem Altstadtbeirat die Entscheidungsfindung erleichtern sollen"]
[]
[null,"Antragsteller:"]
[null,{"$f":"Institution","v":0}]
[null,{"$f":"Name__Ansprechpartner","v":0},null,null,null,"hier kannst Du Ideen umsetzen"]
[]
["Sie können Eingaben nur in den hellgelben Feldern vornehmen."]
[]
["1.","Anlass, Ausgangssituation, Ziele"]
[null,"Was ist der Anlass für die Antragsstellung, worin besteht der Handlungsbedarf? Welche Ziele verfolgen Sie?"]
[]
[]
["2.","Zielgruppen, Stadtteilbezug, Partizipation und Teilhabe"]
[null,"Welche Zielgruppen in der Altstadt sollen erreicht werden? Wie sollen die ProjektteilnehmerInnen bzw. die Bewohner bei der Entwicklung, Planung und/ oder der Umsetzung des Vorhabens beteiligt werden? "]
[]
["Anlage zum Antrag an den Altstadtfonds Lüdenscheid",null,null,null,null,{"$f":"Datum","v":"00:00:00"}]
[{"$f":"Titel","v":0}]
[]
["3.","Netzwerkpartner"]
[null,"Mit welchen Kooperations-/ Netzwerkpartner/-innen wollen Sie dieses Projekt bearbeiten? Was ist deren Rolle und welchen \"Status\" hat die Mitwirkungsbereitschaft (Planung/ Anfrage bereits erfolgt/ Zusage)?"]
[]
[]
["4.","Wirkung und Nachhaltigkeit"]
[null,"Was ist das Besondere an Ihrem Projekt? Welche bleibenden Wirkungen soll das Vorhaben erzielen?\n(Wie) kann sich das Projekt in absehbarer Zukunft verselbständigen?"]
[]
[]
["5.","Öffentlichkeitsarbeit und Dokumentation"]
[null,"Welche Formen der Öffentlichkeitsarbeit planen Sie? \nWelche Formen der Visualisierung/ Dokumentation sind vorgesehen?"]

{"sheet":"Zahlenmäßiger Nachweis","index":3,"n_rows":68,"n_cols":13,"rows_kept":68,"cut":false,"hidden":false,"merged":[[54,2,54,3],[54,6,54,7],[55,2,55,3],[55,6,55,7],[46,2,46,3],[46,6,46,7],[47,2,47,3],[47,6,47,7],[53,2,53,3],[53,6,53,7],[48,2,48,3],[48,6,48,7],[49,2,49,3],[49,6,49,7],[6,1,6,4],[7,0,7,5],[50,2,50,3],[50,6,50,7],[51,2,51,3],[43,2,43,3],[43,6,43,7],[44,2,44,3],[44,6,44,7],[45,2,45,3],[45,6,45,7],[9,6,9,11],[10,10,10,11],[40,10,40,11],[42,2,42,3],[42,6,42,7],[65,7,65,9],[65,11,65,12],[67,11,67,12],[0,0,0,12],[1,0,1,12],[2,0,2,12],[7,6,7,11],[64,7,64,9],[64,11,64,12],[56,2,56,3],[66,11,66,12],[56,6,56,7],[51,6,51,7],[52,2,52,3],[52,6,52,7],[5,1,5,4]]}
["Zahlenmäßiger Nachweis der Kosten "]
["für das im Rahmen des Verfügungsfonds Altstadt bewilligte Vorhaben"]
[{"$f":"Titel","v":0}]
[]
[null,"Antragsteller:",null,null,null,null,null,null,null,null,null,"Datum der Antragstellung:",{"$f":"Datum","v":"00:00:00"}]
[null,{"$f":"Institution","v":0}]
[null,{"$f":"Name__Ansprechpartner","v":0}]
["Sie können Eingaben nur in den hellgelben Feldern vornehmen.",null,null,null,null,null,"Zeilen einblenden: Zwei Zeilen markieren - rechte Maustaste - Einblenden\n-> Ausgeblendete Zeilen zwischen den markierten Zeilen werden angezeigt.",null,null,null,null,null,"hier kannst Du Ideen umsetzen"]
[]
["Geplante AUSGABEN  (Übernahme aus Kosten-/ Finanzierungsübersicht)",null,null,null,null,null,"NACHWEIS der tatsächlichen Kosten"]
[null,null,"(z.B. Lernmittel, Öffentlichkeitsarbeit, Büromaterialien)",null,null,null,null,null,null,null,"Abweichung"]
["Nr.","Kosten","Einz.-Preis","Anzahl","Summe",null,"Einz.-Preis","Anzahl","Summe","Beleg-Nummern","in €","in %","Bemerkungen"]
["1.",{"$f":"IF('Kosten- und Finanzier.übersicht'!B17=\"\",\"\",'Kosten- und Finanzier.übersicht'!B17)","v":""},{"$f":"IF('Kosten- und Finanzier.übersicht'!C17=\"\",\"\",'Kosten- und Finanzier.übersicht'!C17)","v":""},{"$f":"IF('Kosten- und Finanzier.übersicht'!D17=\"\",\"\",'Kosten- und Finanzier.übersicht'!D17)","v":""},{"$f":"IF('Kosten- und Finanzier.übersicht'!E17=\"\",\"\",'Kosten- und Finanzier.übersicht'!E17)","v":0},null,null,null,{"$f":"G13*H13","v":0},null,{"$f":"I13-E13","v":0},{"$f":"I13/E13-1","v":{"$error":"#DIV/0!"}}]
["2.",{"$f":"IF('Kosten- und Finanzier.übersicht'!B18=\"\",\"\",'Kosten- und Finanzier.übersicht'!B18)","v":""},{"$f":"IF('Kosten- und Finanzier.übersicht'!C18=\"\",\"\",'Kosten- und Finanzier.übersicht'!C18)","v":""},{"$f":"IF('Kosten- und Finanzier.übersicht'!D18=\"\",\"\",'Kosten- und Finanzier.übersicht'!D18)","v":""},{"$f":"IF('Kosten- und Finanzier.übersicht'!E18=\"\",\"\",'Kosten- und Finanzier.übersicht'!E18)","v":0},null,null,null,0,null,0,{"$error":"#DIV/0!"}]
["3.",{"$f":"IF('Kosten- und Finanzier.übersicht'!B19=\"\",\"\",'Kosten- und Finanzier.übersicht'!B19)","v":""},{"$f":"IF('Kosten- und Finanzier.übersicht'!C19=\"\",\"\",'Kosten- und Finanzier.übersicht'!C19)","v":""},{"$f":"IF('Kosten- und Finanzier.übersicht'!D19=\"\",\"\",'Kosten- und Finanzier.übersicht'!D19)","v":""},{"$f":"IF('Kosten- und Finanzier.übersicht'!E19=\"\",\"\",'Kosten- und Finanzier.übersicht'!E19)","v":0},null,null,null,0,null,0,{"$error":"#DIV/0!"}]
["4.",{"$f":"IF('Kosten- und Finanzier.übersicht'!B20=\"\",\"\",'Kosten- und Finanzier.übersicht'!B20)","v":""},{"$f":"IF('Kosten- und Finanzier.übersicht'!C20=\"\",\"\",'Kosten- und Finanzier.übersicht'!C20)","v":""},{"$f":"IF('Kosten- und Finanzier.übersicht'!D20=\"\",\"\",'Kosten- und Finanzier.übersicht'!D20)","v":""},{"$f":"IF('Kosten- und Finanzier.übersicht'!E20=\"\",\"\",'Kosten- und Finanzier.übersicht'!E20)","v":0},null,null,null,0,null,0,{"$error":"#DIV/0!"}]
["5.",{"$f":"IF('Kosten- und Finanzier.übersicht'!B42=\"\",\"\",'Kosten- und Finanzier.übersicht'!B42)","v":""},{"$f":"IF('Kosten- und Finanzier.übersicht'!C42=\"\",\"\",'Kosten- und Finanzier.übersicht'!C42)","v":""},{"$f":"IF('Kosten- und Finanzier.übersicht'!D42=\"\",\"\",'Kosten- und Finanzier.übersicht'!D42)","v":""},{"$f":"IF('Kosten- und Finanzier.übersicht'!E42=\"\",\"\",'Kosten- und Finanzier.übersicht'!E42)","v":0},null,null,null,0,null,0,{"$error":"#DIV/0!"}]
["6.",{"$f":"IF('Kosten- und Finanzier.übersicht'!B43=\"\",\"\",'Kosten- und Finanzier.übersicht'!B43)","v":""},{"$f":"IF('Kosten- und Finanzier.übersicht'!C43=\"\",\"\",'Kosten- und Finanzier.übersicht'!C43)","v":""},{"$f":"IF('Kosten- und Finanzier.übersicht'!D43=\"\",\"\",'Kosten- und Finanzier.übersicht'!D43)","v":""},{"$f":"IF('Kosten- und Finanzier.übersicht'!E43=\"\",\"\",'Kosten- und Finanzier.übersicht'!E43)","v":0},null,null,null,0,null,0,{"$error":"#DIV/0!"}]
["7.",{"$f":"IF('Kosten- und Finanzier.übersicht'!B44=\"\",\"\",'Kosten- und Finanzier.übersicht'!B44)","v":""},{"$f":"IF('Kosten- und Finanzier.übersicht'!C44=\"\",\"\",'Kosten- und Finanzier.übersicht'!C44)","v":""},{"$f":"IF('Kosten- und Finanzier.übersicht'!D44=\"\",\"\",'Kosten- und Finanzier.übersicht'!D44)","v":""},{"$f":"IF('Kosten- und Finanzier.übersicht'!E44=\"\",\"\",'Kosten- und Finanzier.übersicht'!E44)","v":0},null,null,null,0,null,0,{"$error":"#DIV/0!"}]
["8.",{"$f":"IF('Kosten- und Finanzier.übersicht'!B45=\"\",\"\",'Kosten- und Finanzier.übersicht'!B45)","v":""},{"$f":"IF('Kosten- und Finanzier.übersicht'!C45=\"\",\"\",'Kosten- und Finanzier.übersicht'!C45)","v":""},{"$f":"IF('Kosten- und Finanzier.übersicht'!D45=\"\",\"\",'Kosten- und Finanzier.übersicht'!D45)","v":""},{"$f":"IF('Kosten- und Finanzier.übersicht'!E45=\"\",\"\",'Kosten- und Finanzier.übersicht'!E45)","v":0},null,null,null,0,null,0,{"$error":"#DIV/0!"}]
["9.",{"$f":"IF('Kosten- und Finanzier.übersicht'!B46=\"\",\"\",'Kosten- und Finanzier.übersicht'!B46)","v":""},{"$f":"IF('Kosten- und Finanzier.übersicht'!C46=\"\",\"\",'Kosten- und Finanzier.übersicht'!C46)","v":""},{"$f":"IF('Kosten- und Finanzier.übersicht'!D46=\"\",\"\",'Kosten- und Finanzier.übersicht'!D46)","v":""},{"$f":"IF('Kosten- und Finanzier.übersicht'!E46=\"\",\"\",'Kosten- und Finanzier.übersicht'!E46)","v":0},null,null,null,0,null,0,{"$error":"#DIV/0!"}]
["10.",{"$f":"IF('Kosten- und Finanzier.übersicht'!B47=\"\",\"\",'Kosten- und Finanzier.übersicht'!B47)","v":""},{"$f":"IF('Kosten- und Finanzier.übersicht'!C47=\"\",\"\",'Kosten- und Finanzier.übersicht'!C47)","v":""},{"$f":"IF('Kosten- und Finanzier.übersicht'!D47=\"\",\"\",'Kosten- und Finanzier.übersicht'!D47)","v":""},{"$f":"IF('Kosten- und Finanzier.übersicht'!E47=\"\",\"\",'Kosten- und Finanzier.übersicht'!E47)","v":0},null,null,null,0,null,0,{"$error":"#DIV/0!"}]
["11.",{"$f":"IF('Kosten- und Finanzier.übersicht'!B48=\"\",\"\",'Kosten- und Finanzier.übersicht'!B48)","v":""},{"$f":"IF('Kosten- und Finanzier.übersicht'!C48=\"\",\"\",'Kosten- und Finanzier.übersicht'!C48)","v":""},{"$f":"IF('Kosten- und Finanzier.übersicht'!D48=\"\",\"\",'Kosten- und Finanzier.übersicht'!D48)","v":""},{"$f":"IF('Kosten- und Finanzier.übersicht'!E48=\"\",\"\",'Kosten- und Finanzier.übersicht'!E48)","v":0},null,null,null,0,null,0,{"$error":"#DIV/0!"}]
["12.",{"$f":"IF('Kosten- und Finanzier.übersicht'!B49=\"\",\"\",'Kosten- und Finanzier.übersicht'!B49)","v":""},{"$f":"IF('Kosten- und Finanzier.übersicht'!C49=\"\",\"\",'Kosten- und Finanzier.übersicht'!C49)","v":""},{"$f":"IF('Kosten- und Finanzier.übersicht'!D49=\"\",\"\",'Kosten- und Finanzier.übersicht'!D49)","v":""},{"$f":"IF('Kosten- und Finanzier.übersicht'!E49=\"\",\"\",'Kosten- und Finanzier.übersicht'!E49)","v":0},null,null,null,0,null,0,{"$error":"#DIV/0!"}]
["13.",{"$f":"IF('Kosten- und Finanzier.übersicht'!B50=\"\",\"\",'Kosten- und Finanzier.übersicht'!B50)","v":""},{"$f":"IF('Kosten- und Finanzier.übersicht'!C50=\"\",\"\",'Kosten- und Finanzier.übersicht'!C50)","v":""},{"$f":"IF('Kosten- und Finanzier.übersicht'!D50=\"\",\"\",'Kosten- und Finanzier.übersicht'!D50)","v":""},{"$f":"IF('Kosten- und Finanzier.übersicht'!E50=\"\",\"\",'Kosten- und Finanzier.übersicht'!E50)","v":0},null,null,null,0,null,0,{"$error":"#DIV/0!"}]
["14.",{"$f":"IF('Kosten- und Finanzier.übersicht'!B51=\"\",\"\",'Kosten- und Finanzier.übersicht'!B51)","v":""},{"$f":"IF('Kosten- und Finanzier.übersicht'!C51=\"\",\"\",'Kosten- und Finanzier.übersicht'!C51)","v":""},{"$f":"IF('Kosten- und Finanzier.übersicht'!D51=\"\",\"\",'Kosten- und Finanzier.übersicht'!D51)","v":""},{"$f":"IF('Kosten- und Finanzier.übersicht'!E51=\"\",\"\",'Kosten- und Finanzier.übersicht'!E51)","v":0},null,null,null,0,null,0,{"$error":"#DIV/0!"}]
["15.",{"$f":"IF('Kosten- und Finanzier.übersicht'!B52=\"\",\"\",'Kosten- und Finanzier.übersicht'!B52)","v":""},{"$f":"IF('Kosten- und Finanzier.übersicht'!C52=\"\",\"\",'Kosten- und Finanzier.übersicht'!C52)","v":""},{"$f":"IF('Kosten- und Finanzier.übersicht'!D52=\"\",\"\",'Kosten- und Finanzier.übersicht'!D52)","v":""},{"$f":"IF('Kosten- und Finanzier.übersicht'!E52=\"\",\"\",'Kosten- und Finanzier.übersicht'!E52)","v":0},null,null,null,0,null,0,{"$error":"#DIV/0!"}]
["16.",{"$f":"IF('Kosten- und Finanzier.übersicht'!B53=\"\",\"\",'Kosten- und Finanzier.übersicht'!B53)","v":""},{"$f":"IF('Kosten- und Finanzier.übersicht'!C53=\"\",\"\",'Kosten- und Finanzier.übersicht'!C53)","v":""},{"$f":"IF('Kosten- und Finanzier.übersicht'!D53=\"\",\"\",'Kosten- und Finanzier.übersicht'!D53)","v":""},{"$f":"IF('Kosten- und Finanzier.übersicht'!E53=\"\",\"\",'Kosten- und Finanzier.übersicht'!E53)","v":0},null,null,null,0,null,0,{"$error":"#DIV/0!"}]
["17.",{"$f":"IF('Kosten- und Finanzier.übersicht'!B54=\"\",\"\",'Kosten- und Finanzier.übersicht'!B54)","v":""},{"$f":"IF('Kosten- und Finanzier.übersicht'!C54=\"\",\"\",'Kosten- und Finanzier.übersicht'!C54)","v":""},{"$f":"IF('Kosten- und Finanzier.übersicht'!D54=\"\",\"\",'Kosten- und Finanzier.übersicht'!D54)","v":""},{"$f":"IF('Kosten- und Finanzier.übersicht'!E54=\"\",\"\",'Kosten- und Finanzier.übersicht'!E54)","v":0},null,null,null,0,null,0,{"$error":"#DIV/0!"}]
["18.",{"$f":"IF('Kosten- und Finanzier.übersicht'!B55=\"\",\"\",'Kosten- und Finanzier.übersicht'!B55)","v":""},{"$f":"IF('Kosten- und Finanzier.übersicht'!C55=\"\",\"\",'Kosten- und Finanzier.übersicht'!C55)","v":""},{"$f":"IF('Kosten- und Finanzier.übersicht'!D55=\"\",\"\",'Kosten- und Finanzier.übersicht'!D55)","v":""},{"$f":"IF('Kosten- und Finanzier.übersicht'!E55=\"\",\"\",'Kosten- und Finanzier.übersicht'!E55)","v":0},null,null,null,0,null,0,{"$error":"#DIV/0!"}]
["19.",{"$f":"IF('Kosten- und Finanzier.übersicht'!B56=\"\",\"\",'Kosten- und Finanzier.übersicht'!B56)","v":""},{"$f":"IF('Kosten- und Finanzier.übersicht'!C56=\"\",\"\",'Kosten- und Finanzier.übersicht'!C56)","v":""},{"$f":"IF('Kosten- und Finanzier.übersicht'!D56=\"\",\"\",'Kosten- und Finanzier.übersicht'!D56)","v":""},{"$f":"IF('Kosten- und Finanzier.übersicht'!E56=\"\",\"\",'Kosten- und Finanzier.übersicht'!E56)","v":0},null,null,null,0,null,0,{"$error":"#DIV/0!"}]
["20.",{"$f":"IF('Kosten- und Finanzier.übersicht'!B57=\"\",\"\",'Kosten- und Finanzier.übersicht'!B57)","v":""},{"$f":"IF('Kosten- und Finanzier.übersicht'!C57=\"\",\"\",'Kosten- und Finanzier.übersicht'!C57)","v":""},{"$f":"IF('Kosten- und Finanzier.übersicht'!D57=\"\",\"\",'Kosten- und Finanzier.übersicht'!D57)","v":""},{"$f":"IF('Kosten- und Finanzier.übersicht'!E57=\"\",\"\",'Kosten- und Finanzier.übersicht'!E57)","v":0},null,null,null,0,null,0,{"$error":"#DIV/0!"}]
["21.",{"$f":"IF('Kosten- und Finanzier.übersicht'!B58=\"\",\"\",'Kosten- und Finanzier.übersicht'!B58)","v":""},{"$f":"IF('Kosten- und Finanzier.übersicht'!C58=\"\",\"\",'Kosten- und Finanzier.übersicht'!C58)","v":""},{"$f":"IF('Kosten- und Finanzier.übersicht'!D58=\"\",\"\",'Kosten- und Finanzier.übersicht'!D58)","v":""},{"$f":"IF('Kosten- und Finanzier.übersicht'!E58=\"\",\"\",'Kosten- und Finanzier.übersicht'!E58)","v":0},null,null,null,0,null,0,{"$error":"#DIV/0!"}]
["22.",{"$f":"IF('Kosten- und Finanzier.übersicht'!B59=\"\",\"\",'Kosten- und Finanzier.übersicht'!B59)","v":""},{"$f":"IF('Kosten- und Finanzier.übersicht'!C59=\"\",\"\",'Kosten- und Finanzier.übersicht'!C59)","v":""},{"$f":"IF('Kosten- und Finanzier.übersicht'!D59=\"\",\"\",'Kosten- und Finanzier.übersicht'!D59)","v":""},{"$f":"IF('Kosten- und Finanzier.übersicht'!E59=\"\",\"\",'Kosten- und Finanzier.übersicht'!E59)","v":0},null,null,null,0,null,0,{"$error":"#DIV/0!"}]
["23.",{"$f":"IF('Kosten- und Finanzier.übersicht'!B60=\"\",\"\",'Kosten- und Finanzier.übersicht'!B60)","v":""},{"$f":"IF('Kosten- und Finanzier.übersicht'!C60=\"\",\"\",'Kosten- und Finanzier.übersicht'!C60)","v":""},{"$f":"IF('Kosten- und Finanzier.übersicht'!D60=\"\",\"\",'Kosten- und Finanzier.übersicht'!D60)","v":""},{"$f":"IF('Kosten- und Finanzier.übersicht'!E60=\"\",\"\",'Kosten- und Finanzier.übersicht'!E60)","v":0},null,null,null,0,null,0,{"$error":"#DIV/0!"}]
["24.",{"$f":"IF('Kosten- und Finanzier.übersicht'!B61=\"\",\"\",'Kosten- und Finanzier.übersicht'!B61)","v":""},{"$f":"IF('Kosten- und Finanzier.übersicht'!C61=\"\",\"\",'Kosten- und Finanzier.übersicht'!C61)","v":""},{"$f":"IF('Kosten- und Finanzier.übersicht'!D61=\"\",\"\",'Kosten- und Finanzier.übersicht'!D61)","v":""},{"$f":"IF('Kosten- und Finanzier.übersicht'!E61=\"\",\"\",'Kosten- und Finanzier.übersicht'!E61)","v":0},null,null,null,0,null,0,{"$error":"#DIV/0!"}]
["25.",{"$f":"IF('Kosten- und Finanzier.übersicht'!B62=\"\",\"\",'Kosten- und Finanzier.übersicht'!B62)","v":""},{"$f":"IF('Kosten- und Finanzier.übersicht'!C62=\"\",\"\",'Kosten- und Finanzier.übersicht'!C62)","v":""},{"$f":"IF('Kosten- und Finanzier.übersicht'!D62=\"\",\"\",'Kosten- und Finanzier.übersicht'!D62)","v":""},{"$f":"IF('Kosten- und Finanzier.übersicht'!E62=\"\",\"\",'Kosten- und Finanzier.übersicht'!E62)","v":0},null,null,null,0,null,0,{"$error":"#DIV/0!"}]
[null,"bis zu 15 weitere Zeilen können eingeblendet werden"]
["Summe Kosten",null,null,null,{"$f":"SUM(E13:E38)","v":0},null,null,null,{"$f":"SUM(I13:I38)","v":0},null,{"$f":"I39-E39","v":0},{"$f":"I39/E39-1","v":{"$error":"#DIV/0!"}}]
[]
[null,null,"(ergänzen Sie die Liste entsprechend Ihrer Finanzkalkulation)",null,null,null,null,null,null,null,"Abweichung"]
["Nr.","Einnahmen/ Eigenmittel/ Drittmittel",null,null,"Summe",null,null,null,"Summe","Beleg-Nummern","in €","in %","Bemerkungen"]
["1.",{"$f":"IF('Kosten- und Finanzier.übersicht'!B69=\"\",\"\",'Kosten- und Finanzier.übersicht'!B69)","v":""},{"$f":"IF('Kosten- und Finanzier.übersicht'!C69=\"\",\"\",'Kosten- und Finanzier.übersicht'!C69)","v":""},{"$f":"IF('Kosten- und Finanzier.übersicht'!D69=\"\",\"\",'Kosten- und Finanzier.übersicht'!D69)","v":""},{"$f":"IF('Kosten- und Finanzier.übersicht'!E69=\"\",\"\",'Kosten- und Finanzier.übersicht'!E69)","v":0},null,null,null,{"$f":"G43","v":0},null,{"$f":"I43-E43","v":0},{"$f":"I43/E43-1","v":{"$error":"#DIV/0!"}}]
["2.",{"$f":"IF('Kosten- und Finanzier.übersicht'!B70=\"\",\"\",'Kosten- und Finanzier.übersicht'!B70)","v":""},{"$f":"IF('Kosten- und Finanzier.übersicht'!C70=\"\",\"\",'Kosten- und Finanzier.übersicht'!C70)","v":""},{"$f":"IF('Kosten- und Finanzier.übersicht'!D70=\"\",\"\",'Kosten- und Finanzier.übersicht'!D70)","v":""},{"$f":"IF('Kosten- und Finanzier.übersicht'!E70=\"\",\"\",'Kosten- und Finanzier.übersicht'!E70)","v":0},null,null,null,{"$f":"G44","v":0},null,0,{"$error":"#DIV/0!"}]
["3.",{"$f":"IF('Kosten- und Finanzier.übersicht'!B71=\"\",\"\",'Kosten- und Finanzier.übersicht'!B71)","v":""},{"$f":"IF('Kosten- und Finanzier.übersicht'!C71=\"\",\"\",'Kosten- und Finanzier.übersicht'!C71)","v":""},{"$f":"IF('Kosten- und Finanzier.übersicht'!D71=\"\",\"\",'Kosten- und Finanzier.übersicht'!D71)","v":""},{"$f":"IF('Kosten- und Finanzier.übersicht'!E71=\"\",\"\",'Kosten- und Finanzier.übersicht'!E71)","v":0},null,null,null,0,null,0,{"$error":"#DIV/0!"}]
["4.",{"$f":"IF('Kosten- und Finanzier.übersicht'!B72=\"\",\"\",'Kosten- und Finanzier.übersicht'!B72)","v":""},{"$f":"IF('Kosten- und Finanzier.übersicht'!C72=\"\",\"\",'Kosten- und Finanzier.übersicht'!C72)","v":""},{"$f":"IF('Kosten- und Finanzier.übersicht'!D72=\"\",\"\",'Kosten- und Finanzier.übersicht'!D72)","v":""},{"$f":"IF('Kosten- und Finanzier.übersicht'!E72=\"\",\"\",'Kosten- und Finanzier.übersicht'!E72)","v":0},null,null,null,0,null,0,{"$error":"#DIV/0!"}]
["5.",{"$f":"IF('Kosten- und Finanzier.übersicht'!B73=\"\",\"\",'Kosten- und Finanzier.übersicht'!B73)","v":""},{"$f":"IF('Kosten- und Finanzier.übersicht'!C73=\"\",\"\",'Kosten- und Finanzier.übersicht'!C73)","v":""},{"$f":"IF('Kosten- und Finanzier.übersicht'!D73=\"\",\"\",'Kosten- und Finanzier.übersicht'!D73)","v":""},{"$f":"IF('Kosten- und Finanzier.übersicht'!E73=\"\",\"\",'Kosten- und Finanzier.übersicht'!E73)","v":0},null,null,null,0,null,0,{"$error":"#DIV/0!"}]
["6.",{"$f":"IF('Kosten- und Finanzier.übersicht'!B74=\"\",\"\",'Kosten- und Finanzier.übersicht'!B74)","v":""},{"$f":"IF('Kosten- und Finanzier.übersicht'!C74=\"\",\"\",'Kosten- und Finanzier.übersicht'!C74)","v":""},{"$f":"IF('Kosten- und Finanzier.übersicht'!D74=\"\",\"\",'Kosten- und Finanzier.übersicht'!D74)","v":""},{"$f":"IF('Kosten- und Finanzier.übersicht'!E74=\"\",\"\",'Kosten- und Finanzier.übersicht'!E74)","v":0},null,null,null,0,null,0,{"$error":"#DIV/0!"}]
["7.",{"$f":"IF('Kosten- und Finanzier.übersicht'!B75=\"\",\"\",'Kosten- und Finanzier.übersicht'!B75)","v":""},{"$f":"IF('Kosten- und Finanzier.übersicht'!C75=\"\",\"\",'Kosten- und Finanzier.übersicht'!C75)","v":""},{"$f":"IF('Kosten- und Finanzier.übersicht'!D75=\"\",\"\",'Kosten- und Finanzier.übersicht'!D75)","v":""},{"$f":"IF('Kosten- und Finanzier.übersicht'!E75=\"\",\"\",'Kosten- und Finanzier.übersicht'!E75)","v":0},null,null,null,0,null,0,{"$error":"#DIV/0!"}]
["8.",{"$f":"IF('Kosten- und Finanzier.übersicht'!B76=\"\",\"\",'Kosten- und Finanzier.übersicht'!B76)","v":""},{"$f":"IF('Kosten- und Finanzier.übersicht'!C76=\"\",\"\",'Kosten- und Finanzier.übersicht'!C76)","v":""},{"$f":"IF('Kosten- und Finanzier.übersicht'!D76=\"\",\"\",'Kosten- und Finanzier.übersicht'!D76)","v":""},{"$f":"IF('Kosten- und Finanzier.übersicht'!E76=\"\",\"\",'Kosten- und Finanzier.übersicht'!E76)","v":0},null,null,null,0,null,0,{"$error":"#DIV/0!"}]
["9.",{"$f":"IF('Kosten- und Finanzier.übersicht'!B77=\"\",\"\",'Kosten- und Finanzier.übersicht'!B77)","v":""},{"$f":"IF('Kosten- und Finanzier.übersicht'!C77=\"\",\"\",'Kosten- und Finanzier.übersicht'!C77)","v":""},{"$f":"IF('Kosten- und Finanzier.übersicht'!D77=\"\",\"\",'Kosten- und Finanzier.übersicht'!D77)","v":""},{"$f":"IF('Kosten- und Finanzier.übersicht'!E77=\"\",\"\",'Kosten- und Finanzier.übersicht'!E77)","v":0},null,null,null,0,null,0,{"$error":"#DIV/0!"}]
["10.",{"$f":"IF('Kosten- und Finanzier.übersicht'!B78=\"\",\"\",'Kosten- und Finanzier.übersicht'!B78)","v":""},{"$f":"IF('Kosten- und Finanzier.übersicht'!C78=\"\",\"\",'Kosten- und Finanzier.übersicht'!C78)","v":""},{"$f":"IF('Kosten- und Finanzier.übersicht'!D78=\"\",\"\",'Kosten- und Finanzier.übersicht'!D78)","v":""},{"$f":"IF('Kosten- und Finanzier.übersicht'!E78=\"\",\"\",'Kosten- und Finanzier.übersicht'!E78)","v":0},null,null,null,0,null,0,{"$error":"#DIV/0!"}]
["11.",{"$f":"IF('Kosten- und Finanzier.übersicht'!B79=\"\",\"\",'Kosten- und Finanzier.übersicht'!B79)","v":""},{"$f":"IF('Kosten- und Finanzier.übersicht'!C79=\"\",\"\",'Kosten- und Finanzier.übersicht'!C79)","v":""},{"$f":"IF('Kosten- und Finanzier.übersicht'!D79=\"\",\"\",'Kosten- und Finanzier.übersicht'!D79)","v":""},{"$f":"IF('Kosten- und Finanzier.übersicht'!E79=\"\",\"\",'Kosten- und Finanzier.übersicht'!E79)","v":0},null,null,null,0,null,0,{"$error":"#DIV/0!"}]
["12.",{"$f":"IF('Kosten- und Finanzier.übersicht'!B80=\"\",\"\",'Kosten- und Finanzier.übersicht'!B80)","v":""},{"$f":"IF('Kosten- und Finanzier.übersicht'!C80=\"\",\"\",'Kosten- und Finanzier.übersicht'!C80)","v":""},{"$f":"IF('Kosten- und Finanzier.übersicht'!D80=\"\",\"\",'Kosten- und Finanzier.übersicht'!D80)","v":""},{"$f":"IF('Kosten- und Finanzier.übersicht'!E80=\"\",\"\",'Kosten- und Finanzier.übersicht'!E80)","v":0},null,null,null,0,null,0,{"$error":"#DIV/0!"}]
["13.",{"$f":"IF('Kosten- und Finanzier.übersicht'!B81=\"\",\"\",'Kosten- und Finanzier.übersicht'!B81)","v":""},{"$f":"IF('Kosten- und Finanzier.übersicht'!C81=\"\",\"\",'Kosten- und Finanzier.übersicht'!C81)","v":""},{"$f":"IF('Kosten- und Finanzier.übersicht'!D81=\"\",\"\",'Kosten- und Finanzier.übersicht'!D81)","v":""},{"$f":"IF('Kosten- und Finanzier.übersicht'!E81=\"\",\"\",'Kosten- und Finanzier.übersicht'!E81)","v":0},null,null,null,0,null,0,{"$error":"#DIV/0!"}]
["14.",{"$f":"IF('Kosten- und Finanzier.übersicht'!B82=\"\",\"\",'Kosten- und Finanzier.übersicht'!B82)","v":""},{"$f":"IF('Kosten- und Finanzier.übersicht'!C82=\"\",\"\",'Kosten- und Finanzier.übersicht'!C82)","v":""},{"$f":"IF('Kosten- und Finanzier.übersicht'!D82=\"\",\"\",'Kosten- und Finanzier.übersicht'!D82)","v":""},{"$f":"IF('Kosten- und Finanzier.übersicht'!E82=\"\",\"\",'Kosten- und Finanzier.übersicht'!E82)","v":0},null,null,null,0,null,0,{"$error":"#DIV/0!"}]
["15.",{"$f":"IF('Kosten- und Finanzier.übersicht'!B83=\"\",\"\",'Kosten- und Finanzier.übersicht'!B83)","v":""},{"$f":"IF('Kosten- und Finanzier.übersicht'!C83=\"\",\"\",'Kosten- und Finanzier.übersicht'!C83)","v":""},{"$f":"IF('Kosten- und Finanzier.übersicht'!D83=\"\",\"\",'Kosten- und Finanzier.übersicht'!D83)","v":""},{"$f":"IF('Kosten- und Finanzier.übersicht'!E83=\"\",\"\",'Kosten- und Finanzier.übersicht'!E83)","v":0},null,null,null,0,null,0,{"$error":"#DIV/0!"}]
[null,"bis zu 10 weitere Zeilen können eingeblendet werden"]
["Summen Einnahmen",null,null,null,{"$f":"SUM(E43:E58)","v":0},null,null,null,{"$f":"SUM(I43:I58)","v":0},null,{"$f":"I59-E59","v":0},{"$f":"I59/E59-1","v":{"$error":"#DIV/0!"}}]
[]
["Fördermittel Altstadtfonds",null,null,null,{"$f":"E39-E59","v":0},null,null,null,{"$f":"I39-I59","v":0},null,{"$f":"K39-K59","v":0},{"$f":"I61/E61-1","v":{"$error":"#DIV/0!"}}]
[]
[]
[]
[]
[null,null,null,null,null,null,null,"Ort, Datum",null,null,null,"Unterschrift"]
[null,null,null,null,null,null,null,null,null,null,null,{"$f":"Name__Ansprechpartner","v":0}]
[null,null,null,null,null,null,null,null,null,null,null,"Name in Blockbuchstaben"]